[Event "37th ECCC 2022"]
[Site "Mayrhofen"]
[Date "2022.10.05"]
[Round "3.27"]
[White "Gokerkan, Cem Kaan"]
[Black "Amin, Bassem"]
[Result "1/2-1/2"]
[ECO "C58"]
[WhiteElo "2465"]
[BlackElo "2667"]
[Annotator "TA"]
[PlyCount "138"]
[EventDate "2022.10.03"]
[EventType "team-tourn"]
[EventCountry "AUT"]
[SourceTitle "playchess.com"]
[Source "ChessBase"]
[SourceQuality "1"]
[TimeControl "40/5400+30:1800+30"]

{[%evp 14,138,19,17,38,30,25,20,36,19,20,25,17,23,15,5,0,15,7,9,7,16,18,0,0,14,23,21,15,14,22,0,0,0,0,0,0,0,0,0,0,0,0,-335,0,0,0,0,0,0,0,0,0,0,0,0,64,16,16,18,25,23,23,23,26,11,11,11,11,11,12,12,18,33,184,155,157,164,185,172,223,125,175,156,187,187,187,54,65,45,187,198,160,123,142,145,146,146,153,144,137,61,36,0,136,61,61,61,136,0,39,54,209,8,8,8,8,8,8,8,8,8,8,8,8,8,8]} 1. e4 {[%emt 0:00:35]} e5 {[%emt 0:01:18]} 2. Nf3 {[%emt 0:00:08]} Nc6 {[%emt 0:00:05]} 3. Bc4 {[%emt 0:00:05]} Nf6 {[%emt 0:00:38]} 4. Ng5 {[%emt 0:00:12]} d5 {[%emt 0:00:36]} 5. exd5 {[%emt 0:00:04]} Na5 {[%emt 0:00:05]} 6. Bb5+ {[%emt 0:00:04]} c6 {[%emt 0:00:08]} 7. dxc6 {[%emt 0:00:04]} bxc6 {[%emt 0:00:05]} 8. Bd3 {[%emt 0:00:05]} Nd5 {[%emt 0:00:10] C58: Two Knights: 4 Ng5 d5 5 exd5 Na5 sidelines.} 9. Nf3 {[%emt 0:00:05]} (9. Qh5 g6 10. Nxf7 gxh5 $17) 9... Bd6 {[%emt 0:00:12]} 10. O-O {[%emt 0:00:12]} O-O {[%emt 0:00:15]} 11. Re1 {[%emt 0:00:13]} f5 {[%emt 0:00:11] The modern move.} 12. Nxe5 {[%emt 0:01:52]} Qf6 $1 {[%emt 0:00:07]} (12... Qh4 13. Bf1 $18) 13. Nf3 {[%emt 0:00:04]} g5 $1 {[%emt 0:00:07]} 14. c4 {[%emt 0:01:36]} Nf4 {[%emt 0:00:08]} 15. Bf1 {[%emt 0:00:09]} g4 {[%emt 0:00:05]} 16. d4 {[%emt 0:00:22]} gxf3 {[%emt 0:00:06]} 17. Qxf3 {[%emt 0:00:04]} Ne6 {[%emt 0:00:07]} (17... Qxd4 18. Rd1 Nh3+ 19. gxh3 $16) 18. Qc3 {[%emt 0:00:11]} Qh4 {[%emt 0:06:36][%csl Gd6][%cal Rh4h2]} 19. h3 {[%emt 0:07:34] Black must now prevent d5.} c5 $1 {[%emt 0:00:17][%cal Of5f4] [#]} 20. Qxa5 $146 {[%emt 0:11:52]} (20. d5 $6 Nd4 $14) ({Predecessor:} 20. Nd2 Nxd4 21. Nf3 Nxf3+ 22. Qxf3 Bb7 23. Qc3 Nc6 24. Re6 Rad8 25. Bh6 Nd4 26. Bxf8 Bxf8 {0-1 (32) Deac,B (2679)-Demchenko,A (2654) Chess.com INT 2022}) 20... Nxd4 {[%emt 0:00:25]} 21. Nc3 $1 {[%emt 0:04:09]} f4 $1 {[%emt 0:39:34][%cal Oc8h3]} 22. Re4 {[%emt 0:00:09][%cal Oe4d4] Threatens to win with Rxd4!} Nf3+ {[%emt 0:19:58]} 23. gxf3 {[%emt 0:00:19]} Bxh3 {[%emt 0:00:06]} 24. Bxh3 {[%emt 0:09:26]} Qxh3 {[%emt 0:00:05]} 25. Ne2 $1 {[%emt 0:00:10]} (25. Nb5 Rf5 $1 26. Bxf4 Rh5 $1) 25... Qxf3 {[%emt 0:00:35]} 26. Rxf4 {[%emt 0:00:33]} Bxf4 {[%emt 0:04:12]} 27. Nxf4 {[%emt 0:07:16]} Rae8 {[%emt 0:12:20] ...Qg4+ is the strong threat.} (27... Rad8 $5 28. Be3 $8 Rd7 $11) 28. Bd2 $2 {[%emt 0:06:39][%mdl 8192]} (28. Qd2 $2 Rxf4 $1 {[%mdl 512]} 29. Qd5+ Qxd5 30. cxd5 Re1+ 31. Kg2 Rd4 $19) (28. Be3 $11 Rxe3 29. fxe3 Qxe3+ 30. Kh1 Qxf4 31. Rg1+ Kh8 32. Qc3+ Rf6 33. Rg2) 28... Rf5 $2 {[%emt 0:05:09]} (28... Re5 $19 {( -> ...Rg5+)} 29. Qa3 Rg5+ 30. Kf1 Qh1+ 31. Ke2 Re8+ 32. Kd3 Qxa1) 29. Rf1 $11 {[%emt 0:04:54]} Rg5+ {[%emt 0:05:30]} 30. Kh2 {[%emt 0:00:59] Hoping for Qc3.} Rg4 {[%emt 0:02:06]} 31. Rg1 {[%emt 0:00:49]} Qxf2+ {[%emt 0:00:42]} 32. Rg2 {[%emt 0:00:07]} Qh4+ {[%emt 0:00:26]} (32... Rxg2+ 33. Nxg2 Qd4 34. Qc3 $16) 33. Kg1 $1 {[%emt 0:02:15][%cal Bh2g1,Bg1g2,Bg2f2,Bf2f3,Bf3g3,Bg3h4,Bh4h3][%mdl 32]} Rxg2+ {[%emt 0:00:24]} 34. Kxg2 {[%emt 0:09:47] Chess con chili.} Re5 {[%emt 0:01:13]} ({Black should try} 34... Qg4+ $11 35. Kf2 Qh4+ 36. Kf3 Qh1+ 37. Kg3 Qg1+ 38. Ng2 h5) 35. Qc7 {[%emt 0:08:01]} (35. Qxa7 Qg4+ 36. Kh2 Qh4+ 37. Kg1 Qg4+ 38. Ng2 Qd4+ 39. Be3 Qd1+ 40. Kf2 (40. Kh2 Qh5+ 41. Kg3 Qg6+ 42. Kf2 Qc2+ 43. Kf3 Qe4+ 44. Kg3 Qg6+ 45. Kh2 Rh5+ 46. Kg1 Qb1+ 47. Kf2 Qc2+ 48. Kg3 Qg6+ 49. Kf2 Qc2+ 50. Kg3 Qg6+ 51. Kf2 Qc2+ $11) 40... Qc2+ 41. Kg3 Qg6+ 42. Kh2 Qh5+ 43. Kg3 (43. Kg1 Qd1+ 44. Kh2 Qh5+ 45. Kg3 Qg6+ 46. Kf3 Qe4+ 47. Kg3 Qg6+ $11) 43... Qg6+ 44. Kh2 Qh5+ 45. Kg3 (45. Kg1 Qd1+ 46. Kf2 Qc2+ 47. Kf3 Qe4+ 48. Kg3 Qg6+ $11) 45... Qg6+ $11) (35. Qa3 $1 $14) 35... Qg4+ {[%emt 0:02:38]} 36. Kf2 {[%emt 0:00:33]} Qh4+ $1 {[%emt 0:00:04]} 37. Kf3 {[%emt 0:05:30]} Qh1+ {[%emt 0:00:08]} 38. Ng2 {[%emt 0:00:06]} Qf1+ $1 {[%emt 0:01:09]} (38... Qh3+ $2 39. Kf2 Qh5 40. Qd8+ (40. Bc3 Qe2+ 41. Kg1 Qd1+ 42. Kh2 Rh5+ 43. Kg3 Rg5+ 44. Kh2 Rh5+ 45. Kg3 Rg5+ 46. Kh2 Rh5+ $11) 40... Re8 41. Qd5+ Qxd5 42. cxd5 $18) 39. Kg3 {[%emt 0:00:13]} Qd3+ {[%emt 0:00:09]} 40. Kh4 {[%emt 0:07:32]} Qd4+ {[%emt 0:01:49]} 41. Bf4 {[%emt 0:37:07]} Qf2+ {[%emt 0:06:09]} 42. Bg3 {[%emt 0:00:00]} Qf6+ {[%emt 0:06:12]} 43. Kh3 {[%emt 0:00:00]} Rh5+ {[%emt 0:07:24]} (43... Qf5+ $14 44. Kh2 Re2) 44. Bh4 $18 {[%emt 0:00:00]} Qe6+ {[%emt 0:00:51]} 45. Kg3 {[%emt 0:00:00]} Rf5 {[%emt 0:02:29]} 46. b3 {[%emt 0:00:00]} (46. Qxa7 Qe5+) 46... h5 {[%emt 0:00:47]} (46... Qe5+ {is a better defense.} 47. Qxe5 Rxe5) 47. Qe7 {[%emt 0:00:00]} (47. Qxa7 Qe5+) (47. Qd8+ $18 Kh7 48. Kh2) 47... Re5 {[%emt 0:05:27]} (47... Qxe7 $16 48. Bxe7 Kf7) 48. Qxa7 {[%emt 0:01:08]} Qg4+ {[%emt 0:02:47]} 49. Kh2 {[%emt 0:00:02]} Re2 {[%emt 0:00:05][%csl Ge2][%cal Rg4g2]} 50. Qb8+ {[%emt 0:01:24]} (50. Bg3 h4 51. Qa8+ (51. Qb8+ Kh7 $11) 51... Kg7 $11) (50. Qa8+ $18 Kh7 51. Kg1) 50... Kf7 {[%emt 0:00:08][%csl Ge2][%cal Rg4g2]} 51. Qc7+ {[%emt 0:00:35]} Ke8 {[%emt 0:00:36]} (51... Kg6 $14 52. Qc6+ (52. Bg3 h4 $11) 52... Kh7) 52. Qd8+ {[%emt 0:01:49]} Kf7 {[%emt 0:00:01][%csl Ge2][%cal Rg4g2]} 53. Qf6+ {[%emt 0:04:01]} (53. Bg3 Qe4 54. Qd7+ Kg6 55. Qd6+ Kh7 56. Qc7+ Kh8 57. Qd8+ Kh7 58. Qc7+ Kh8 59. Qc8+ Kg7 60. Qd7+ Kg6 61. Qd6+ Kh7 62. Qc7+ $11) 53... Kg8 {[%emt 0:00:34][%csl Ge2][%cal Rg4g2]} 54. Bg3 {[%emt 0:02:37]} Rxa2 {[%emt 0:01:10]} 55. Qd8+ {[%emt 0:00:07]} Kf7 {[%emt 0:00:46]} 56. Qd5+ {[%emt 0:00:12]} Ke8 {[%emt 0:00:12]} 57. Qe5+ {[%emt 0:01:38]} (57. Qxc5 $16 {aiming for Qe5+.} Re2 58. Qc6+ Kf7 59. Qd5+ Kf6 60. Qd6+ Kf7 61. Qd5+ Kf6 62. Qd8+ Kg7 63. Qc7+ Kg8 64. Qb8+ Kf7 65. Qa7+ Kg6 66. Qa6+ Kf7 67. Qb7+ Kg6 68. Qc6+ Kf7 69. Qc7+ Kg8 70. Qb8+ Kf7 71. Qc7+ Kg8) 57... Kf7 $14 {[%emt 0:00:13]} 58. Qd5+ {[%emt 0:01:36]} ({Much less strong is} 58. Qxc5 $6 h4 59. Qd5+ (59. Qc7+ Kg8 $18) 59... Kg7 60. Qe5+ Kf7 $18) (58. Qc7+ $14 Kg6 59. Qd6+ (59. Qxc5 h4 $18) 59... Kf7 60. Qd5+ (60. Qxc5 h4 $18) 60... Ke8 61. Qxc5) 58... Ke8 $1 $16 {[%emt 0:00:01]} 59. Qc6+ {[%emt 0:01:00]} (59. Qxc5 $16 {Strongly threatening Qc6+.} Re2 60. Qc6+ Kf7 61. Qd5+ Kf6 62. Qd6+ Kf7 63. Qd5+ Kf6 64. Qd8+ Kg7 65. Qc7+ Kg8 66. Qb8+ Kf7 67. Qc7+ Kg8 68. Qb8+ Kf7 69. Qc7+ Kg8) 59... Kf7 $14 {[%emt 0:00:09]} 60. Qc7+ {[%emt 0:00:43]} ({Don't do} 60. Qxc5 $6 h4 61. Qc7+ Kg8 $18) 60... Ke8 {[%emt 0:00:15]} (60... Kg6 $1 $14) 61. Qe5+ {[%emt 0:00:38]} (61. Qxc5 $16 {And now Qe5+ would win.} Re2 {[#]} 62. Kg1 $1) 61... Kf7 {[%emt 0:00:09]} 62. Qxc5 {[%emt 0:00:43]} Qf3 $2 {[%emt 0:00:01]} ({Better is} 62... h4 $1 $14 63. Qd5+ (63. Qc7+ Kg6 $18) 63... Kg7 64. Be5+ Kh6) 63. Qd5+ $2 {[%emt 0:00:13]} (63. Qc7+ $18 Ke8 64. Qc8+ Ke7 65. Bh4+ (65. Qc7+ Ke8 $18) 65... Kd6 66. Qd8+ Kc6 67. Qg5) 63... Qxd5 $11 {[%emt 0:00:01] The position is equal.} 64. cxd5 {[%emt 0:00:01]} Rd2 {[%emt 0:00:36]} 65. d6 {[%emt 0:01:38]} Rb2 {[%emt 0:00:10]} 66. Bh4 {[%emt 0:00:34] Threatening mate with d7.} Ke6 {[%emt 0:00:41]} 67. Be7 {[%emt 0:00:07]} Kd7 {[%emt 0:00:03]} 68. Kg3 {[%emt 0:00:33]} Rxb3+ {[%emt 0:00:37]} 69. Kh4 {[%emt 0:00:05]} Rd3 {[%emt 0:00:13] Black escapes into a draw.  Weighted Error Value: White=0.22 (precise) /Black=0.25 (precise)} 1/2-1/2

[Event "37th ECCC 2022"]
[Site "Mayrhofen"]
[Date "2022.10.05"]
[Round "3.28"]
[White "Vocaturo, Daniele"]
[Black "Firat, Burak"]
[Result "1/2-1/2"]
[ECO "C50"]
[WhiteElo "2615"]
[BlackElo "2455"]
[Annotator "TA"]
[PlyCount "73"]
[EventDate "2022.10.03"]
[EventType "team-tourn"]
[EventCountry "AUT"]
[SourceTitle "playchess.com"]
[Source "ChessBase"]
[SourceQuality "1"]
[TimeControl "40/5400+30:1800+30"]

{[%evp 11,73,8,19,10,13,16,20,0,20,20,6,7,23,16,24,8,0,7,6,0,0,-43,0,0,0,-34,18,17,41,52,41,43,84,81,95,56,111,110,154,179,177,36,55,23,23,26,33,33,24,32,50,32,39,41,33,14,14,16,23,0,0,1,7,0]} 1. e4 {[%emt 0:00:12]} e5 {[%emt 0:00:48]} 2. Nf3 {[%emt 0:00:40]} Nc6 {[%emt 0:00:10]} 3. Bc4 {[%emt 0:00:41]} Nf6 {[%emt 0:00:26]} 4. d3 {[%emt 0:00:40]} Bc5 {[%emt 0:00:16]} 5. O-O {[%emt 0:01:11]} d6 {[%emt 0:00:33]} 6. c3 {[%emt 0:01:15]} a6 {[%emt 0:01:26]} 7. Re1 {[%emt 0:04:29] C54: Giuoco Piano: 4 c3 Nf6, main lines with 5 d4 and 5 d3.} Ba7 {[%emt 0:01:53]} 8. a4 {[%emt 0:01:30]} h6 {[%emt 0:00:29]} 9. Na3 {[%emt 0:04:08]} O-O {[%emt 0:03:31]} 10. Nc2 {[%emt 0:00:23]} Ne7 {[%emt 0:15:35] was the old line (10...Re8).} 11. Be3 {[%emt 0:06:19]} Bxe3 {[%emt 0:07:38]} 12. Nxe3 {[%emt 0:00:05]} Ng6 {[%emt 0:01:06]} 13. b4 {[%emt 0:02:20]} c6 {[%emt 0:06:07]} 14. Bb3 {[%emt 0:02:06]} Re8 {[%emt 0:08:03] [#]} 15. Qc2 $146 {[%emt 0:01:15]} ({Predecessor:} 15. Nc4 Bg4 16. h3 Be6 17. a5 Bxc4 18. Bxc4 d5 19. Bb3 Qd6 20. Qc2 Rad8 21. Rad1 {½-½ (45) Tsydypov,Z (2529)-Grischuk,A (2771) St Petersburg 2018}) 15... d5 {[%emt 0:04:16]} 16. c4 {[%emt 0:05:40][%cal Rc4d5]} Be6 {[%emt 0:05:29]} (16... d4 $5 {[%cal Rd4e3]} 17. Nf5 Nf4 $15) 17. a5 {[%emt 0:02:27]} d4 {[%emt 0:02:41]} 18. Nf1 {[%emt 0:01:13][%cal Be3f1,Bf1d2,Bd2e4,Be4d6][%mdl 32]} (18. Nf5 $5 {[%cal Rc4c5]}) 18... Nh7 {[%emt 0:07:06]} (18... c5 $15) 19. c5 $11 {[%emt 0:03:04]} Nf4 {[%emt 0:03:33]} 20. Bxe6 {[%emt 0:13:12]} (20. N1d2 {is interesting.} Ng5 21. Bxe6 Rxe6 22. g3) 20... Rxe6 {[%emt 0:00:07]} 21. g3 {[%emt 0:00:12]} Nh3+ {[%emt 0:07:07]} 22. Kg2 {[%emt 0:03:07]} N3g5 {[%emt 0:00:54]} 23. N1d2 {[%emt 0:03:00]} Qd7 {[%emt 0:06:16]} ({Black should play} 23... Nxf3 $14 24. Nxf3 Ng5) 24. Ng1 $16 {[%emt 0:02:02] [#] Strongly threatening h4.} f5 {[%emt 0:08:59]} 25. exf5 {[%emt 0:03:01]} Re7 {[%emt 0:00:01]} 26. h4 {[%emt 0:06:07]} (26. Nc4 $18 {Hoping for Nb6.} Qd5+ 27. f3) 26... Nf7 $14 {[%emt 0:00:11]} 27. Ngf3 {[%emt 0:00:07] With the idea Nc4.} Rae8 {[%emt 0:01:47]} 28. Ne4 {[%emt 0:03:49] Black must now prevent Qa2.} Qxf5 {[%emt 0:00:58]} 29. Nd6 {[%emt 0:03:11]} Nxd6 {[%emt 0:00:21]} 30. cxd6 {[%emt 0:00:03]} Rf7 {[%emt 0:00:29]} 31. Nxd4 {[%emt 0:02:48]} Qd7 {[%emt 0:00:26]} 32. Nf3 {[%emt 0:02:07]} Qxd6 {[%emt 0:00:27]} (32... Rxf3 $2 33. Kxf3 Qh3 34. Ke3 $18) 33. Qc5 {[%emt 0:00:33]} Qxc5 {[%emt 0:01:58]} 34. bxc5 {[%emt 0:00:02]} Rfe7 {[%emt 0:00:43]} ({Don't take} 34... Ref8 35. Re3 $16 (35. Nxe5 Rxf2+ 36. Kg1 Rc2 $11)) 35. Nd2 {[%emt 0:01:00] Threatening Ne4.} Rd8 {[%emt 0:00:39]} 36. Ra3 {[%emt 0:01:20]} Rd5 {[%emt 0:00:56]} 37. Ne4 {[%emt 0:01:03] Weighted Error Value: White=0.15 (very precise) /Black=0.11 (very precise)} 1/2-1/2

[Event "37th ECCC 2022"]
[Site "Mayrhofen"]
[Date "2022.10.05"]
[Round "3.29"]
[White "Ozen, Deniz"]
[Black "Van Wely, Loek"]
[Result "1/2-1/2"]
[ECO "B08"]
[WhiteElo "2397"]
[BlackElo "2629"]
[Annotator "TA"]
[PlyCount "80"]
[EventDate "2022.10.03"]
[EventType "team-tourn"]
[EventCountry "AUT"]
[SourceTitle "playchess.com"]
[Source "ChessBase"]
[SourceQuality "1"]
[TimeControl "40/5400+30:1800+30"]

{[%evp 20,80,63,58,82,19,20,11,8,27,28,20,34,38,33,16,27,17,21,23,18,14,28,0,0,0,0,0,0,0,8,8,8,6,10,8,8,0,5,7,11,0,16,0,0,0,0,0,0,0,0,0,0,0,0,0,0,0,0,0,0,0,0]} 1. e4 {[%emt 0:00:03]} g6 {[%emt 0:00:07]} 2. d4 {[%emt 0:00:19]} Bg7 {[%emt 0:00:06]} 3. Nc3 {[%emt 0:00:05]} d6 {[%emt 0:00:05]} 4. Nf3 {[%emt 0:00:21]} Nf6 {[%emt 0:00:07]} 5. Be2 {[%emt 0:00:37]} O-O {[%emt 0:04:06]} 6. O-O {[%emt 0:02:00]} c6 {[%emt 0:00:05]} 7. a4 {[%emt 0:00:53]} Qc7 {[%emt 0:00:36]} 8. h3 {[%emt 0:01:11]} Nbd7 {[%emt 0:00:10]} 9. Be3 {[%emt 0:00:13]} e5 {[%emt 0:00:55]} 10. dxe5 {[%emt 0:02:23]} dxe5 {[%emt 0:00:28]} 11. Bc4 {[%emt 0:07:53]} Re8 {[%emt 0:30:22] [#] B08: Pirc Defence: Classical System.} 12. Qb1 $146 {[%emt 0:08:50] White is much more active. The black rooks are badly placed.} ({White should play} 12. Ng5 $1 $16 Re7 13. a5) ({Predecessor:} 12. Qe2 Nf8 13. Ng5 Ne6 14. Nxe6 Bxe6 15. Bxe6 Rxe6 16. Qc4 Qe7 {½-½ (16) Atabayev,M (2465)-Kakageldyev,A (2379) Moscow 2014}) 12... Nf8 $11 {[%emt 0:09:46]} 13. Ng5 {[%emt 0:05:40]} Ne6 {[%emt 0:01:18]} 14. Nxe6 {[%emt 0:02:47]} Bxe6 {[%emt 0:00:06]} 15. Qa2 {[%emt 0:01:31]} Qa5 {[%emt 0:08:27]} 16. Bxe6 {[%emt 0:00:32]} Rxe6 {[%emt 0:04:17]} 17. Qc4 {[%emt 0:00:11]} Bf8 {[%emt 0:00:18]} 18. Rfd1 {[%emt 0:08:55]} Rd6 {[%emt 0:12:43]} 19. Rxd6 {[%emt 0:02:37]} Bxd6 {[%emt 0:01:42]} 20. Rd1 {[%emt 0:00:39]} Be7 {[%emt 0:01:51]} 21. Bg5 {[%emt 0:13:46] [#] aiming for Bxf6.} Rd8 {[%emt 0:02:58] The position is equal.} (21... Kg7 {keeps more tension.} 22. Rd3 Rd8 23. b4 Qc7) 22. Rxd8+ {[%emt 0:00:41]} Qxd8 {[%emt 0:03:51]} 23. Be3 {[%emt 0:00:38]} a6 {[%emt 0:01:30]} 24. b4 {[%emt 0:01:36]} Nh5 {[%emt 0:02:30]} 25. b5 {[%emt 0:03:42]} axb5 {[%emt 0:01:58]} 26. axb5 {[%emt 0:00:07]} Qd7 {[%emt 0:06:04]} 27. bxc6 {[%emt 0:07:45]} bxc6 {[%emt 0:00:02]} 28. Kh2 {[%emt 0:01:43]} Ng7 {[%emt 0:01:38]} 29. Na4 {[%emt 0:08:54]} Ne6 {[%emt 0:02:56]} 30. Qb3 {[%emt 0:05:16]} Kg7 {[%emt 0:00:58]} 31. Nb6 {[%emt 0:00:57]} Qc7 {[%emt 0:01:09]} 32. Nc4 {[%emt 0:01:10]} Bc5 {[%emt 0:01:17]} 33. Bxc5 {[%emt 0:01:23]} Nxc5 {[%emt 0:00:02][%mdl 4096] Endgame KQN-KQN} 34. Qe3 {[%emt 0:00:18]} Ne6 {[%emt 0:00:45]} 35. Qc3 {[%emt 0:03:08]} f6 {[%emt 0:00:39]} 36. Na5 {[%emt 0:01:15]} Nd4 {[%emt 0:01:07]} 37. Qc5 {[%emt 0:02:36]} Nxc2 {[%emt 0:00:18]} 38. Nxc6 {[%emt 0:03:01]} Nb4 {[%emt 0:00:46]} 39. Qxb4 {[%emt 0:00:09]} Qxc6 {[%emt 0:00:05]} 40. Qe7+ {[%emt 0:00:27]} Kg8 {[%emt 0:00:07] Weighted Error Value: White=0.06 (flawless) /Black=0.04 (flawless)} 1/2-1/2

[Event "37th ECCC 2022"]
[Site "Mayrhofen"]
[Date "2022.10.05"]
[Round "3.30"]
[White "Tregubov, Pavel V."]
[Black "Kamer, Kayra"]
[Result "1-0"]
[ECO "E94"]
[WhiteElo "2548"]
[BlackElo "2354"]
[Annotator "TA"]
[PlyCount "71"]
[EventDate "2022.10.03"]
[EventType "team-tourn"]
[EventCountry "AUT"]
[SourceTitle "playchess.com"]
[Source "ChessBase"]
[SourceQuality "1"]
[TimeControl "40/5400+30:1800+30"]

{[%evp 25,71,43,59,66,73,73,84,22,56,65,135,89,88,93,97,94,94,77,93,98,97,97,164,138,160,158,168,137,143,102,108,124,123,123,646,632,621,643,633,611,606,564,1327,1295,1250,1240,1824,1734]} 1. d4 {[%emt 0:00:03]} Nf6 {[%emt 0:00:09]} 2. c4 {[%emt 0:00:07]} g6 {[%emt 0:00:05]} 3. Nc3 {[%emt 0:00:05]} Bg7 {[%emt 0:00:05]} 4. e4 {[%emt 0:00:05]} d6 {[%emt 0:00:17]} 5. Nf3 {[%emt 0:00:13]} O-O {[%emt 0:00:27]} 6. Be2 {[%emt 0:00:06]} e5 {[%emt 0:02:15]} 7. O-O {[%emt 0:00:10]} Nbd7 {[%emt 0:02:50]} 8. Be3 {[%emt 0:00:24]} exd4 {[%emt 0:02:33]} 9. Nxd4 {[%emt 0:00:16]} Re8 {[%emt 0:00:05]} 10. f3 {[%emt 0:04:20]} c6 {[%emt 0:01:52]} 11. Qd2 {[%emt 0:02:58]} d5 {[%emt 0:04:06]} 12. exd5 {[%emt 0:02:46]} cxd5 {[%emt 0:00:16]} 13. Rad1 {[%emt 0:04:10]} Nb6 {[%emt 0:05:53]} 14. c5 $1 {[%emt 0:08:33] E94: King's Indian: Classical: 6 Be2 e5 7 0-0: Various Black 7th moves.} Nc4 {[%emt 0:00:25]} 15. Bxc4 {[%emt 0:00:07]} dxc4 {[%emt 0:00:04]} 16. Bf2 {[%emt 0:21:20] [#]} (16. Qf2 $16) 16... Bd7 $146 {[%emt 0:08:23]} ({Predecessor:} 16... a6 17. Na4 Nd5 18. Qc2 Qg5 19. h4 Qh6 20. Rfe1 Bd7 21. c6 bxc6 22. Qxc4 Ne3 23. Rxe3 Rxe3 {1-0 (33) Coppola,C (2214)-Caitano,M (2072) Punta del Este 2018}) 17. Ndb5 {[%emt 0:01:14]} Be6 {[%emt 0:08:36]} ({Black should play} 17... Bxb5 $14 18. Nxb5 Qxd2 19. Rxd2 Red8) 18. Qe2 {[%emt 0:17:01]} (18. Nd6 $142) 18... Qa5 $16 {[%emt 0:04:07]} 19. Nd6 {[%emt 0:00:18][%csl LRb7,LRc4,LRe8]} Re7 {[%emt 0:00:07]} 20. Nxc4 {[%emt 0:03:17] White is much more active. Pair of Knights!} Qa6 {[%emt 0:01:23]} 21. b3 {[%emt 0:00:29][%cal Bb2b3,Bb3c4][%mdl 32]} Bxc4 {[%emt 0:10:17]} 22. Qxc4 {[%emt 0:06:50]} Qxc4 {[%emt 0:00:07]} 23. bxc4 {[%emt 0:00:02]} Rae8 {[%emt 0:10:29]} (23... b6 $16) 24. Nb5 {[%emt 0:01:23]} Re2 {[%emt 0:00:20]} 25. Nd6 {[%emt 0:01:46]} Rb8 {[%emt 0:01:27]} 26. Rb1 {[%emt 0:02:26] Black must now prevent c6.} Bf8 {[%emt 0:00:04]} 27. a3 {[%emt 0:03:17]} b6 {[%emt 0:06:25] [#]} 28. Rfd1 $1 {[%emt 0:02:16]} Rd8 {[%emt 0:02:20]} 29. cxb6 {[%emt 0:03:46][%cal Bc5b6,Bb6a7][%mdl 32]} Rxd6 $4 {[%emt 0:14:52][%mdl 8192] A mistake that costs the game.} (29... Bxd6 $2 30. bxa7 Ree8 31. c5 $18) (29... axb6 $16 30. Rxb6 Ra8) 30. Rxd6 $18 {[%emt 0:00:40] White is clearly winning.} Bxd6 {[%emt 0:00:02]} 31. bxa7 {[%emt 0:00:09]} Re8 {[%emt 0:00:05]} 32. Rb6 {[%emt 0:00:55]} Be5 {[%emt 0:01:48]} 33. f4 {[%emt 0:00:43]} Nd7 {[%emt 0:00:53]} 34. Rb7 {[%emt 0:01:01]} Bxf4 {[%emt 0:00:52]} 35. Rxd7 {[%emt 0:00:07]} Ra8 {[%emt 0:00:03]} 36. Bd4 {[%emt 0:02:15] Weighted Error Value: White=0.17 (very precise) /Black=0.35} 1-0